Cogmind - Beta 14 @@@ ROGUE MODE // 2024.11.20 @ 16:11:14 Player: skye Result: Destroyed by P-70 Sage with Tesla Rifle Performance ------------- Evolutions (3) 1500 Regions Visited (7) 1400 Robots Destroyed (47) 235 Value Destroyed (1811) 1811 Prototype IDs (23) 460 Alien Tech Used (0) 0 Bonus (626) 626 TOTAL SCORE: 6032 Bonus ------- High Alert Combat Kills 58 Follower Combat Kills 68 Entered Garrisons 200 Aligned with FarCom 300 Cogmind --------- Core Integrity 0/700 Matter 4/300 Energy 99/100 System Corruption 6% Temperature Cool (9) Movement Core (150) Ox2 Location -7/Garrison Parts ------- > --- POWER (2) -------- (None) > --- PROPULSION (4) --- (None) > --- UTILITY (5) ------ Structural Scanner Improved Utility Shielding Hacking Suite System Shield > --- WEAPON (2) ------- Flak Gun > --- INVENTORY (5) ---- Terrain Scanner Cloak of Protection Heavy Rocket Launcher Peak State ------------ > --- POWER ------------ Light Deuterium Engine > --- PROPULSION ------- Wheel Compact Wheel Armored Huge Wheel > --- UTILITY ---------- Large Storage Unit Cloak of Protection Layered Light Armor Plating System Shield > --- WEAPON ----------- Slug Cannon Remote Datajack > --- INVENTORY -------- Wheel Flight Unit Flight Unit Improved Heat Sink Improved Targeting Computer Improved Utility Shielding Hacking Suite EM Pulse Cannon Flak Gun Gauss Cannon Improved Grenade Launcher Heavy Rocket Launcher Heavy Rocket Launcher Mining Laser Katana [Rating: 41] Favorites ----------- Power Light Nuclear Core Engine Ion Engine Power Core Light Nuclear Core Propulsion Light Treads Treads Light Treads Leg Aluminum Leg Wheel Wheel Flight Unit VTOL Module Utility Large Storage Unit Device Improved Terrain Scanner Storage Large Storage Unit Hackware System Shield Protection Layered Light Armor Plating Weapon Assault Rifle Energy Gun Medium Laser Ballistic Gun Assault Rifle Ballistic Cannon Gauss Cannon Launcher Heavy Rocket Launcher Special Weapon Remote Datajack Slashing Weapon Katana Build | -11 -10 -10 -10 -9 -8 -7 -7 ------- Run | Yrd Mat Min Exi Min Mat Fac Gar Slots Evolved 6 | . . . . . 4 2 . Power 1 | . . . . . 1 . . Propulsion 2 | . . . . . 1 1 . Utility 3 | . . . . . 2 1 . Weapon . | . . . . . . . . Parts Attached 55 | 2 3 5 . 1 13 19 12 Power 7 | . . 2 . . 3 1 1 Engine 3 | . . 1 . . 1 1 . Core 4 | . . 1 . . 2 . 1 Reactor . | . . . . . . . . Propulsion 15 | 2 . . . 1 2 6 4 Treads 5 | 2 . . . 1 1 1 . Leg . | . . . . . . . . Wheel 6 | . . . . . 1 5 . Hover . | . . . . . . . . Flight 4 | . . . . . . . 4 Utility 11 | . 2 1 . . 3 3 2 Device 3 | . . 1 . . . 2 . Storage 2 | . 2 . . . . . . Processor . | . . . . . . . . Hackware 2 | . . . . . 1 . 1 Protection 4 | . . . . . 2 1 1 Artifact . | . . . . . . . . Weapon 22 | . 1 2 . . 5 9 5 Energy Gun 1 | . . 1 . . . . . Energy Cannon . | . . . . . . . . Ballistic Gun 5 | . . 1 . . 1 1 2 Ballistic Cannon 4 | . . . . . . 4 . Launcher 7 | . 1 . . . 3 2 1 Special Weapon 3 | . . . . . . 2 1 Impact Weapon . | . . . . . . . . Slashing Weapon 2 | . . . . . 1 . 1 Piercing Weapon . | . . . . . . . . Special Melee Weapon . | . . . . . . . . Unidentified Prototypes . | . . . . . . . . Parts Lost 20 | . . 2 . . 8 2 8 Power 5 | . . 1 . . 2 1 1 Propulsion 8 | . . . . . 3 1 4 Utility 1 | . . . . . 1 . . Weapon 6 | . . 1 . . 2 . 3 Highest Loss Streak 8 | . . 1 . . 7 2 8 To Critical Strikes . | . . . . . . . . Average Slot Usage (%) 87 | . 99 96 100 98 86 72 76 Engine 4 | . 14 5 . . 7 4 . Core 6 | . . 8 14 14 8 . 3 Treads 17 | . 28 28 28 26 19 3 . Wheel 6 | . . . . . . 18 17 Device 8 | . . 12 14 14 8 6 7 Storage 11 | . 27 14 14 14 9 7 5 Hackware 4 | . . . . . 8 7 12 Protection 4 | . . . . . 7 7 10 Energy Gun 8 | . 22 14 14 14 5 . . Ballistic Gun 6 | . . 11 14 14 8 . . Ballistic Cannon 2 | . . . . . . 5 5 Launcher 2 | . 5 . . . 3 1 5 Slashing Weapon 1 | . . . . . . 4 1 Peak Build Rating 41 | 6 8 13 13 13 27 41 37 Average Rating 20 | 6 7 10 12 12 21 32 32 On Entrance 13 | 6 6 8 12 13 13 19 34 Naked Turns . | . . . . . . . . Heaviest Build 49 | 13 34 34 30 30 44 47 49 Greatest Support 60 | 40 40 40 40 40 60 54 48 Greatest Overweight (x) 13 | . . . . 1 2 2 13 Average Overweight (x) . | . . . . . . . . Largest Inventory Capacity 15 | 8 15 15 15 15 15 15 15 Average Capacity 14 | 8 12 15 15 15 15 15 13 Most Carried 15 | 6 11 15 15 15 15 15 15 Average Carried 13 | 5 8 14 14 14 14 13 12 Final Capacity 15 | 8 15 15 15 15 15 15 5 Final Carried 15 | 4 11 15 15 15 12 15 3 Class Distribution -------------------- 68% | Mutant 23% | Skirmisher 8% | Hacker-Mutant Dominant Class ---------------- Mutant | -10/Materials Mutant | -10/Mines Mutant | -10/Exiles Skirmisher | -9/Mines Skirmisher | -8/Materials Mutant | -7/Factory Hacker-Mutant | -7/Garrison Resources | -11 -10 -10 -10 -9 -8 -7 -7 ----------- Run | Yrd Mat Min Exi Min Mat Fac Gar Matter Collected 1215 | 200 . 151 . 34 156 500 174 Remotely . | . . . . . . . . Salvage Created 1265 | . 84 323 . 111 266 348 133 Parts 85 | . 7 21 . 3 14 26 14 Haulers Intercepted . | . . . . . . . . Recyclers Shooed 2 | . . 1 . 1 . . . Parts Field Recycled . | . . . . . . . . Retrieved Matter . | . . . . . . . . Parts Self-Destructed . | . . . . . . . . Prevented . | . . . . . . . . Kills | -11 -10 -10 -10 -9 -8 -7 -7 ------- Run | Yrd Mat Min Exi Min Mat Fac Gar Combat Hostiles Destroyed 34 | . 3 6 . 1 8 7 9 Melee 2 | . . . . . 1 1 . Guns 11 | . 1 6 . 1 3 . . Cannons 6 | . . . . . . 2 4 AOE 15 | . 2 . . . 4 4 5 Classes Destroyed 10 | . 1 3 . . 3 3 . Worker 2 | . . . . . . 2 . Builder 3 | . . 1 . . . 2 . Tunneler 1 | . . 1 . . . . . Recycler 4 | . . 1 . 1 . 2 . Operator 1 | . . . . . . 1 . Watcher 2 | . . . . . 1 1 . Swarmer 11 | . . . . . 2 . 9 Grunt 19 | . 3 6 . 1 5 4 . Sentry 2 | . . . . . 1 1 . Programmer 2 | . . . . . . 2 . Best Kill Streak 5 | . 2 3 . 2 4 5 4 Combat Bots Only 4 | . 2 2 . 1 4 2 4 Max Kills in Single Turn 3 | . 1 1 . 1 2 2 3 Gunslinging . | . . . . . . . . Exploded 3 | . 1 . . . 2 2 3 Melee 1 | . . . . . 1 1 . Uniques/NPCs Destroyed . | . . . . . . . . Combat | -11 -10 -10 -10 -9 -8 -7 -7 -------- Run | Yrd Mat Min Exi Min Mat Fac Gar Hostile Shots Fired 352 | . 11 40 . 7 119 75 100 Missed 106 | . 2 12 . 2 31 29 30 Damage Taken 3722 | . 87 382 . 103 1146 700 1304 Core 970 | . 50 31 . 21 161 42 665 Absorbed by Shields 46 | . . . . . . . 46 Regen/Repaired (Parts) 40 | . . . . . 40 . . Core Remaining (%) 76 | 100 . . . 59 70 . . Volleys Fired 164 | . 4 35 . 8 53 47 17 Largest 2 | . 2 2 . 2 2 2 1 Hottest 80 | . 80 70 . 70 70 76 48 Shots Fired 212 | . 5 47 . 16 74 52 18 Gun 133 | . 2 47 . 16 61 5 2 Cannon 41 | . . . . . . 33 8 Launcher 28 | . 3 . . . 13 7 5 Special 10 | . . . . . . 7 3 Kinetic 108 | . . 12 . 8 40 38 10 Thermal 65 | . 1 35 . 8 21 . . Explosive 28 | . 3 . . . 13 7 5 Electromagnetic 1 | . 1 . . . . . . Robot Hit Streak 11 | . 2 6 . 11 6 8 5 Robot Miss Streak 5 | . 1 2 . 3 5 4 4 Penetration Max . | . . . . . . . . Secondary Targets 1 | . . 1 . . . . . Max Gunslinging Chain 1 | . . 1 . . . . . Shots Hit Robots 131 | . 3 32 . 11 45 31 9 Core Hits 89 | . 6 19 . 6 18 22 18 Critical Kills 1 | . . . . . . 1 . Critical Parts Destroyed 2 | . . . . . 1 1 . Critical Strikes 8 | . . . . 1 2 4 1 Burn 2 | . . . . 1 1 . . Destroy 3 | . . . . . 1 2 . Blast 2 | . . . . . . 1 1 Sever 1 | . . . . . . 1 . Melee Attacks 29 | . . . . . 1 12 16 Impact . | . . . . . . . . Slashing 29 | . . . . . 1 12 16 Piercing . | . . . . . . . . Sneak Attacks 3 | . . . . . . 3 . Combat Hostiles . | . . . . . . . . Follow-up Attacks . | . . . . . . . . Damage Inflicted 4163 | . 178 389 . 136 909 1643 908 Guns 1097 | . 15 387 . 136 475 39 45 Cannons 500 | . . . . . . 388 112 Explosions 2115 | . 163 . . . 398 872 682 Melee 432 | . . . . . 36 327 69 Ramming 19 | . . 2 . . . 17 . Kinetic 1039 | . . 89 . 64 302 427 157 Thermal 592 | . . 298 . 72 173 49 . Explosive 2066 | . 163 . . . 398 823 682 Electromagnetic 15 | . 15 . . . . . . Impact . | . . . . . . . . Slashing 432 | . . . . . 36 327 69 Piercing . | . . . . . . . . Highest Corruption 6 | . . . . . . 3 6 Average Corruption 2 | . . . . . . 1 3 Corruption Purged . | . . . . . . . . Corruption Blocked . | . . . . . . . . Effects 26 | . . . . . . 11 15 Message Errors 7 | . . . . . . 1 6 Matter Fused 7 | . . . . . . 2 5 Heat Flow Errors 6 | . . . . . . 4 2 Energy Discharges 1 | . . . . . . 1 . Parts Fused 1 | . . . . . . 1 . Data Loss (minor) 2 | . . . . . . 2 . Data Loss (major) 1 | . . . . . . . 1 Misfires 1 | . . . . . . . 1 Overload Shots . | . . . . . . . . Overflow Damage 120 | . . . . . . 94 26 Projectiles 38 | . . . . . . 38 . Explosions 52 | . . . . . . 26 26 Melee 30 | . . . . . . 30 . Knockbacks 5 | . . 1 . . . 4 . Impact 1 | . . 1 . . . . . Kinetic 4 | . . . . . . 4 . Secondary . | . . . . . . . . Self-Inflicted Damage 275 | . . . . . 154 121 . Shots 5 | . . . . . 4 1 . Rammed 2 | . . 1 . . . 1 . Targets Rammed 2 | . . 1 . . . 1 . Kicked . | . . . . . . . . Crushed . | . . . . . . . . Highest Temperature 322 | . 18 117 . 103 322 226 234 Average Temperature 69 | . 9 44 . 59 95 58 77 Received Heat Transfer 978 | . 30 222 . 18 333 132 243 Siege Activations . | . . . . . . . . Robots Corrupted . | . . . . . . . . Combat Hostiles . | . . . . . . . . Parts Fried . | . . . . . . . . Impact Corruptions . | . . . . . . . . Robots Melted . | . . . . . . . . Combat Hostiles . | . . . . . . . . Parts Melted . | . . . . . . . . Heat Transferred 1684 | . . 746 . 296 592 50 . Parts Sabotaged . | . . . . . . . . Parts Stolen . | . . . . . . . . Parts Stripped . | . . . . . . . . Power Chain Reactions . | . . . . . . . . Alert | -11 -10 -10 -10 -9 -8 -7 -7 ------- Run | Yrd Mat Min Exi Min Mat Fac Gar Peak Influence 616 | . 99 127 . 31 245 457 616 Initial 312 | . . 17 . . 11 64 312 Average 178 | . 39 53 . 10 77 306 454 Maximum Alert Level 2 | . . . . . 1 2 2 Low Security (%) 63 | 100 100 100 . 100 98 18 . Level 1 18 | . . . . . 1 53 29 Level 2 17 | . . . . . . 28 70 Level 3 . | . . . . . . . . Level 4 . | . . . . . . . . Level 5 . | . . . . . . . . High Security . | . . . . . . . . Max Security . | . . . . . . . . Squads Dispatched 9 | . 1 . . . 2 6 . Investigation 2 | . 1 . . . . 1 . Extermination 2 | . . . . . . 2 . Reinforcement 5 | . . . . . 2 3 . Assault . | . . . . . . . . Garrison . | . . . . . . . . Intercept . | . . . . . . . . Searches Triggered . | . . . . . . . . Construction Impeded 3 | . . . . . 1 2 . Haulers Reinforced . | . . . . . . . . Active Scanning Responses . | . . . . . . . . Cargo Convoy Interrupts . | . . . . . . . . Stealth | -11 -10 -10 -10 -9 -8 -7 -7 --------- Run | Yrd Mat Min Exi Min Mat Fac Gar Distress Signals 4 | . 1 . . . 3 . . Communications Jammed . | . . . . . . . . Distress Signals . | . . . . . . . . Times Spotted 67 | . 4 6 . 2 20 15 20 Peak Tracking Total 10 | . 4 2 . 2 5 3 10 Tactical Retreats 7 | . 1 . . . . 3 3 Traps | -11 -10 -10 -10 -9 -8 -7 -7 ------- Run | Yrd Mat Min Exi Min Mat Fac Gar Traps Triggered 4 | . . . . . . . 4 Indirectly . | . . . . . . . . Trap Hack Attempts . | . . . . . . . . Triggered . | . . . . . . . . Disarmed . | . . . . . . . . Reprogrammed . | . . . . . . . . Reused . | . . . . . . . . Traps Extracted . | . . . . . . . . Installed . | . . . . . . . . Triggered . | . . . . . . . . Machines | -11 -10 -10 -10 -9 -8 -7 -7 ---------- Run | Yrd Mat Min Exi Min Mat Fac Gar Machines Disabled 22 | . . . . . 4 16 2 Max in Single Turn 5 | . . . . . 2 5 1 Garrison Relay 1 | . . . . . . . 1 Machines Repaired . | . . . . . . . . Machines Dismantled . | . . . . . . . . Machines Sabotaged . | . . . . . . . . Overloaded Fab Kills . | . . . . . . . . Hacking | -11 -10 -10 -10 -9 -8 -7 -7 --------- Run | Yrd Mat Min Exi Min Mat Fac Gar Machines Accessed 22 | . 4 1 1 1 6 7 2 Terminals 18 | . 4 1 . 1 5 5 2 Fabricators . | . . . . . . . . Repair Stations 1 | . . . . . 1 . . Recycling Units 1 | . . . . . . 1 . Scanalyzers . | . . . . . . . . Garrison Access 1 | . . . . . . 1 . Total Hacks 72 | . 13 1 1 4 22 25 6 Successful 27 | . 3 . 1 2 9 10 2 Failed 45 | . 10 1 . 2 13 15 4 Catastrophic 7 | . 1 1 . . 1 3 1 Database Lockouts . | . . . . . . . . Manual 48 | . 13 1 1 4 17 12 . Terminals 54 | . 13 1 . 4 17 13 6 Fabricators . | . . . . . . . . Repair Stations 5 | . . . . . 5 . . Recycling Units 7 | . . . . . . 7 . Scanalyzers . | . . . . . . . . Garrison Access 5 | . . . . . . 5 . Terminal Hacks 10 | . 1 . 1 1 3 2 2 Part Schematic 1 | . . . . . 1 . . Open DSF 1 | . . . . . . 1 . Emergency Access Points 1 | . . . . . . . 1 Terminal Index 1 | . 1 . . . . . . Alert Level 1 | . . . . . 1 . . Dispatch Records 1 | . . . . . . 1 . Hauler Manifests 2 | . . . . 1 1 . . Security Stations 1 | . . . . . . . 1 Derelict Proto ID Bank 1 | . . . 1 . . . . Fabricator Hacks . | . . . . . . . . Repair Station Hacks 2 | . . . . . 2 . . Scan Component 1 | . . . . . 1 . . Repair 1 | . . . . . 1 . . Recycling Unit Hacks 6 | . . . . . . 6 . Recycle Component 2 | . . . . . . 2 . Process 2 | . . . . . . 2 . Report Inventory 1 | . . . . . . 1 . Retrieve Matter 1 | . . . . . . 1 . Scanalyzer . | . . . . . . . . Garrison Access Hacks 1 | . . . . . . 1 . Unlock Access 1 | . . . . . . 1 . Unauthorized Hacks 8 | . 2 . . 1 4 1 . Terminals 8 | . 2 . . 1 4 1 . Botnet 8 | . 2 . . 1 4 1 . Fabricators . | . . . . . . . . Repair Stations . | . . . . . . . . Recycling Units . | . . . . . . . . Scanalyzers . | . . . . . . . . Garrison Access . | . . . . . . . . Data Cores Recovered . | . . . . . . . . Used . | . . . . . . . . Hacking Detections 17 | . 4 1 . . 4 6 2 Full Trace Events 2 | . 1 . . . . 1 . Feedback Events 1 | . . . . . . 1 . Corruption 1 | . . . . . . 1 . Feedback Blocked . | . . . . . . . . Robot Schematics Acquired . | . . . . . . . . Robots Built . | . . . . . . . . Authchips . | . . . . . . . . Time . | . . . . . . . . Total Robot Build Rating . | . . . . . . . . Part Schematics Acquired 1 | . . . . . 1 . . Parts Built . | . . . . . . . . Authchips . | . . . . . . . . Time . | . . . . . . . . Total Part Build Rating . | . . . . . . . . Parts Repaired 1 | . . . . . 1 . . Time 38 | . . . . . 38 . . Parts Recycled 2 | . . . . . . 2 . Recycled Matter 64 | . . . . . . 64 . Retrieved Matter 64 | . . . . . . 64 . Retrieved Components . | . . . . . . . . Parts Scanalyzed . | . . . . . . . . Part Schematics Acquired . | . . . . . . . . Parts Damaged . | . . . . . . . . Bothacking | -11 -10 -10 -10 -9 -8 -7 -7 ------------ Run | Yrd Mat Min Exi Min Mat Fac Gar Used RIF Installer . | . . . . . . . . Robots Hacked 5 | . . . . . . 4 1 Non-combat 3 | . . . . . . 3 . Combat 2 | . . . . . . 1 1 Robot Hacks Applied 5 | . . . . . . 4 1 parse_system 4 | . . . . . . 3 1 no_distress 1 | . . . . . . 1 . Relay Couplers Released 5 | . . . . . . . 5 Machine Destruction 5 | . . . . . . . 5 Fabnet Peak Effective % . | . . . . . . . . Robots Rewired . | . . . . . . . . Allies Hacked . | . . . . . . . . Hacks Repelled . | . . . . . . . . Allies | -11 -10 -10 -10 -9 -8 -7 -7 -------- Run | Yrd Mat Min Exi Min Mat Fac Gar Total Allies 1 | . . . . 1 . . . Largest Group 1 | . . . . 1 1 . . Highest-Rated Group 31 | . . . . 31 31 . . Highest-Rated Ally 31 | . . . . 31 31 . . Total Orders . | . . . . . . . . Ally Attacks 16 | . . . . . 16 . . Total Damage 278 | . . . . . 278 . . Kills 2 | . . . . . 2 . . Allies Corrupted . | . . . . . . . . Allies Melted . | . . . . . . . . Intel | -11 -10 -10 -10 -9 -8 -7 -7 ------- Run | Yrd Mat Min Exi Min Mat Fac Gar Robot Analysis Total . | . . . . . . . . Derelict Logs Recovered 3 | . . 2 . 1 . . . Drone Launches . | . . . . . . . . Drone Recoveries . | . . . . . . . . Exploration | -11 -10 -10 -10 -9 -8 -7 -7 ------------- Run | Yrd Mat Min Exi Min Mat Fac Gar Turns Passed 5053 | 14 509 877 596 395 827 1166 669 Spaces Moved 3172 | 9 301 489 372 212 355 926 508 Core 2 | . . . . . . . 2 Treads 1717 | 2 301 489 372 212 340 1 . Legs 7 | 7 . . . . . . . Wheels 1338 | . . . . . 15 925 398 Hover . | . . . . . . . . Flight 108 | . . . . . . . 108 Fastest Speed 26 | 120 160 160 160 160 115 86 26 Average Speed 136 | 128 160 160 160 161 173 104 106 Slowest Speed 755 | 160 160 160 160 240 240 240 755 Overloaded Moves . | . . . . . . . . Propulsion Burnouts . | . . . . . . . . Robots Hopped . | . . . . . . . . Cave-ins Triggered . | . . . . . . . . Exploration Rate (%) 44 | 2 40 86 65 53 34 25 52 Regions Visited 7 Branch Regions 3 Pre-discovered Areas 2 | . . 2 . . . . . Known Exits Taken 1 | . . . . . . 1 . Unknown Exits Taken 6 | 1 1 1 1 1 1 . . Scrap Searched 1 | . . 1 . . . . . Spaces Dug 52 | . . . . . 34 3 15 Terrain Destroyed 387 | . 9 . . . 177 170 31 Melee 9 | . . . . . . 3 6 Projectile 14 | . . . . . . 14 . AOE 364 | . 9 . . . 177 153 25 Terrain Rammed . | . . . . . . . . Walls Destroyed . | . . . . . . . . Machines Disabled . | . . . . . . . . Actions | -11 -10 -10 -10 -9 -8 -7 -7 --------- Run | Yrd Mat Min Exi Min Mat Fac Gar Total 3646 | 12 322 538 373 249 492 1058 602 Wait 103 | . 9 . . 27 49 18 . Move 3160 | 8 300 488 371 211 354 925 503 Hop . | . . . . . . . . Pick Up 48 | . 6 5 1 1 11 21 3 Fast Attach 17 | . 1 2 . 1 4 4 5 Attach 16 | . . 2 . . 6 3 5 Detach 4 | . . 2 . . . 1 1 Swap 22 | 2 2 1 . . 3 12 2 Drop 46 | 2 . 2 1 1 11 14 15 Fire 164 | . 4 35 . 8 53 47 17 Melee 29 | . . . . . 1 12 16 Ram 1 | . . . . . . 1 . Kick . | . . . . . . . . Crush 1 | . . 1 . . . . . Escape Stasis 34 | . . . . . . . 34 Rewire 1 | . . . . . . . 1 Trap . | . . . . . . . . Miscellaneous . | . . . . . . . . Route ------- -11/Scrapyard -10/Materials (discovered 2 exits: [*Mat] / *Min) -10/Mines (discovered 2 exits: [*Mat] / *Exi) -10/Exiles (discovered 2 exits: *Min x2) -9/Mines -8/Materials (discovered 2 exits: *Fac x2) -7/Factory -7/Garrison (discovered 2 exits: [*Fac x2]) History --------- Turn | Location | Event 1 | -11/Scrapyard | Discovered new exit (range 3) 15 | -11/Scrapyard | Entered Materials 194 | -10/Materials | Discovered new exit (range 7) 266 | -10/Materials | Discovered new exit (range 3) 314 | -10/Materials | Build established: Mutant 524 | -10/Materials | Entered Mines 530 | -10/Mines | Met a Derelict bent on vengeance 685 | -10/Mines | Learned location of Storage (-7) 688 | -10/Mines | Learned location of Mines (-9) 820 | -10/Mines | A weapon hastily lodged in a ceiling crevice suddenly fell to the ground 857 | -10/Mines | Discovered new exit (range 10) 1393 | -10/Mines | Deemed a non-threat by the Exiles lab entrance 1395 | -10/Mines | Discovered new exit (range 5) 1401 | -10/Mines | Entered Exiles 1440 | -10/Exiles | Met 8R-AWN 1467 | -10/Exiles | Met EX-HEX 1533 | -10/Exiles | Met EX-BIN 1552 | -10/Exiles | Aligned with FarCom system 1553 | -10/Exiles | Given EX-Vault access code 1597 | -10/Exiles | Opened EX-Vault 1610 | -10/Exiles | Found Cloak of Protection 1643 | -10/Exiles | Warned to stay clear of 0b10 Research branches 1705 | -10/Exiles | Met EX-DEC 1760 | -10/Exiles | Discovered new exit (range 14) 1976 | -10/Exiles | Discovered new exit (range 15) 1997 | -10/Exiles | Left Exiles lab with Cloak of Protection 1997 | -10/Exiles | Entered Mines 2061 | -9/Mines | Learned Materials emergency access door positions 2294 | -9/Mines | Build established: Skirmisher 2365 | -9/Mines | Discovered new exit (range 8) 2374 | -9/Mines | Received a Mining Laser from a helpful Derelict 2392 | -9/Mines | Entered Materials 2392 | -8/Materials | Accompanied by 1 ally 2392 | -8/Materials | Evolved 4 slots: Power x1, Propulsion x1, Utility x2 2588 | -8/Materials | Repaired Lgt. Nuclear Core 2829 | -8/Materials | Discovered new exit (range 9) 3211 | -8/Materials | Discovered new exit (range 5) 3219 | -8/Materials | Entered Factory 3219 | -7/Factory | Evolved 2 slots: Propulsion x1, Utility x1 3225 | -7/Factory | Lost 7 parts (2p2n1u2w) 3463 | -7/Factory | Build established: Mutant 4384 | -7/Factory | Identified exit to Garrison 4385 | -7/Factory | Entered Garrison 4459 | -7/Garrison | Triggered checkpoint 4497 | -7/Garrison | Discovered new exit (range 10) 4508 | -7/Garrison | Attempted to access garrison exit controls, blocked by remote lockdown 4577 | -7/Garrison | Triggered checkpoint 4670 | -7/Garrison | Triggered checkpoint 4727 | -7/Garrison | Discovered new exit (range 13) 4741 | -7/Garrison | Attempted to access garrison exit controls, blocked by remote lockdown 4807 | -7/Garrison | Triggered checkpoint 4825 | -7/Garrison | Garrison Relay disabled 4864 | -7/Garrison | Heavy support dispatched to Factory 4867 | -7/Garrison | Learned Factory security intel 4971 | -7/Garrison | Triggered checkpoint 4990 | -7/Garrison | Build established: Hacker-Mutant 5031 | -7/Garrison | Core integrity fell below 50% 5049 | -7/Garrison | Core integrity fell below 20% 5054 | -7/Garrison | Destroyed by P-70 Sage with Tesla Rifle Last Messages --------------- Field strength at 32. VTOL Module destroyed. Field strength at 22. Field strength at 13. Field strength at 3. Stasis field depleted. Imp. Grenade Launcher destroyed. Jacked S-27 Virus... >>parse_system Reading system data... VTOL Module destroyed. Remote Datajack destroyed. Machine disabled. VTOL Module destroyed. Machine disabled. :4::E,AYJ & > 8EV 4A=EY9OVAC& Katana destroyed. Critical hit (Burn: +37). P-70 Sage resets P-70 Sage, system corruption cleaned. Map ----- +----------------------------------------------------+ | ?##]|######+## ##########??????????????????????? | | ## !##??????# #???????????????????????????????? | | ??????# #???????????????????????????????? | | # ??????# #???????????????????????????????? | | ### #?????# #???????????????????????????????? | | # ?????# #???????????????????????????????? | | [# ###????# #???????????????????????????????? | | [ ####+### #???????????????????????????????? | | =% #???????????????????????????????? | | [ #???????????????????????????????? | | # ###########???????????????????????????????? | | ## #?????????????????????????????????????????? | | "?????????????????????????????????????????? | | "?????????????????????????????????????????? | | "?????????????????????????????????????????? | | %!"?????????????????????????????????????????? | | ##% #????????????????#######??????????????????? | | ## ###########??????# """"#??????????????????? | | #??????# "#??"#??????????????? | | #??????# p"#? "#??????????????? | | ###+#### #??????# "#" "#??????????????? | | ###+##??????# #?????## "#" "#??????????????? | | #???????????# +?gg??? #??????????????? | | ##???????????# g#??????# #??????????????? | | ?????????????# g#???##?# p "#??????????????? | | ?????????????+ g??? ##p@ " ""#??????????????? | | ?????????????# #???# ## ###""""#??????????????? | | ?????????????# #???# ####g#????????????????????? | | ?????????????# #???# #?## #????????????????????? | | ?????????????# #???#s### ##????????????????????? | | ?????####+#### #???# ## ##?????????????????????? | | ?????# #???# # ##??????????????????????? | | ?????# ####### #####""#####????????????????????? | | ?????# #?????# #????????????????????? | | ?????# #?????# #????????????????????? | | ?????# "?????#+######### < #????????????????????? | | ?????# "?+?????????????# #????????????????????? | | ?????# "???????????????#####????????????????????? | | ?????# #????????????????????????????????????????? | | ?????# #????????????????????????????????????????? | | ?????? ?????????????????????????????????????????? | | ?????? ?????????????????????????????????????????? | | ?????? ?????????????????????????????????????????? | | ?????? ?????????????????????????????????????????? | | ?????? ?????????????????????????????????????????? | | ?????? ?????????????????????????????????????????? | | ?????? ?????????????????????????????????????????? | | ????????????????????????????????????????????????? | | ????????????????????????????????????????????????? | | ????????????????????????????????????????????????? | +----------------------------------------------------+ Best States ------------- Heat Dissipation 34 Energy Generation 19 Energy Capacity 310 Matter Stores 300 Matter Capacity 300 Sight Range 16 Terrain Scan Range 16 Terrain Scan Density 10 Cloak Strength 5 Armor Coverage 300 Power Shielding 33 Utility Shielding 66 Evasion (%) 64 Recoil Reduction 3 Offensive Hacking 10 Defensive Hacking 10 Item Schematics ----------------- VTOL Module | -8/Materials | Hacked Robot Schematics ------------------ None Fabricated ------------ Nothing Alien Tech Used ----------------- None Achievements -------------- None Challenges ------------ None Game ------ Seed MassSubatomicLance Manual? 0 Play Time 00:44:17 Cumulative 46.8 hours Start 2024.11.20 @ 15:26:18 End 2024.11.20 @ 16:11:14 Sessions 1 Manual Loads 0 Difficulty Rogue Special Mode None Game No. 53 Rogue 9 Adventurer 44 Explorer 0 Win Type - Total 0 Types 0/0/0/0/0/0/0/0/0 Lore% 17 Gallery% 41 Achievement% 30 Wizard Run 0 Options --------- Layout 1 ASCII 0 Keyboard 1 Movement Vi Keybinds 0 Fullscreen 1 Font 24/Terminus Map View 50x40 Zoom Use 0% Tactical HUD 0 Map Filters NONE Filters NONE Steam 1 RUN: f62cede9-fb82-4cca-b999-de9d31219d52